Workbook

Sheet 1
A1: Школа | B1: МБОУ "Гимназия №21" | E1: Отд./корп | I1: День | J1: 2023-04-28
A3: Прием пищи | B3: Раздел | C3: № рец. | D3: Блюдо | E3: Выход, г | F3: Цена | G3: Калорийность | H3: Белки | I3: Жиры | J3: Углеводы
B4: гор.блюдо | C4: ='[1]10-15, 24-29.04.2023'!C34 -> ТТК 2023 г | D4: ='[1]10-15, 24-29.04.2023'!D34 -> Жаркое по домашнему | E4: ='[1]10-15, 24-29.04.2023'!E34 -> 185 | G4: ='[1]10-15, 24-29.04.2023'!G34 -> 344 | H4: ='[1]10-15, 24-29.04.2023'!H34 -> 13.6 | I4: ='[1]10-15, 24-29.04.2023'!I34 -> 15.2 | J4: ='[1]10-15, 24-29.04.2023'!J34 -> 38.3
A5: Завтрак | B5: гор.напиток | C5: ='[1]10-15, 24-29.04.2023'!C35 -> № 648/2004 г | D5: ='[1]10-15, 24-29.04.2023'!D35 -> Компот из замороженной компотной смеси | E5: ='[1]10-15, 24-29.04.2023'!E35 -> 180 | G5: ='[1]10-15, 24-29.04.2023'!G35 -> 41 | H5: ='[1]10-15, 24-29.04.2023'!H35 -> 0.12 | I5: ='[1]10-15, 24-29.04.2023'!I35 -> 0.02 | J5: ='[1]10-15, 24-29.04.2023'!J35 -> 1.03
B6: хлеб | D6: ='[1]10-15, 24-29.04.2023'!D36 -> Хлеб ржано-пшеничный | E6: ='[1]10-15, 24-29.04.2023'!E36 -> 20 | G6: ='[1]10-15, 24-29.04.2023'!G36 -> 44 | H6: ='[1]10-15, 24-29.04.2023'!H36 -> 1 | I6: ='[1]10-15, 24-29.04.2023'!I36 -> 0.2 | J6: ='[1]10-15, 24-29.04.2023'!J36 -> 9
B7: хлеб | D7: ='[1]10-15, 24-29.04.2023'!D37 -> Хлеб пшеничный | E7: ='[1]10-15, 24-29.04.2023'!E37 -> 20 | G7: ='[1]10-15, 24-29.04.2023'!G37 -> 47 | H7: ='[1]10-15, 24-29.04.2023'!H37 -> 1.52 | I7: ='[1]10-15, 24-29.04.2023'!I37 -> 0.16 | J7: ='[1]10-15, 24-29.04.2023'!J37 -> 9.84
B8: фрукт | C8: № 338/2015г | D8: Плоды свежие (яблоки) | E8: 100 | G8: 47 | H8: 0.4 | I8: 0.4 | J8: 9.8
D10: Итого: | E10: ='[1]10-15, 24-29.04.2023'!E39 -> 505 | F10: ='[1]10-15, 24-29.04.2023'!F39 -> 62.1 | G10: ='[1]10-15, 24-29.04.2023'!G39 -> 523 | H10: ='[1]10-15, 24-29.04.2023'!H39 -> 16.64 | I10: ='[1]10-15, 24-29.04.2023'!I39 -> 15.98 | J10: ='[1]10-15, 24-29.04.2023'!J39 -> 67.97
A11: Завтрак 2 | B11: фрукты
A14: Обед | B14: закуска
B15: 1 блюдо
B16: 2 блюдо
B17: гарнир
B18: сладкое
B19: хлеб бел.
B20: хлеб черн.
